fUSD/lending_fUSD_20240521
["ID","MTS","AMOUNT","RATE_DAILY","PERIOD"]
[327676712,1716307849570,-630.75423744,0.00032876,6]
[327676713,1716307849580,-796.91,0.00032876,6]
[327676714,1716307849590,-3003.27,0.00032876,6]
[327676715,1716307849600,-1154.04,0.00032876,6]
[327676716,1716307849609,-511.11,0.00032876,6]
[327676717,1716307849620,-542.33,0.00032876,6]
[327676718,1716307849629,-966.17,0.00032876,6]
[327676719,1716307849640,-551.91,0.00032876,6]
[327676720,1716307849650,-2871.2,0.00032876,6]
[327676721,1716307849659,-3819.68,0.00032876,6]
[327676722,1716307849668,-500.0,0.00032876,6]
[327676723,1716307849678,-1191.4,0.00032876,6]
[327676724,1716307849688,-500.0,0.00032876,6]
[327676725,1716307849698,-500.0,0.00032876,6]
[327676726,1716307849708,-306.32179399,0.00032876,6]
[327676727,1716307849717,-500.0,0.00032876,6]
[327676728,1716307849729,-780.22,0.00032876,6]
[327676729,1716307849740,-3364.22,0.00032876,6]
[327676730,1716307849749,-1881.09,0.00032876,6]
[327676731,1716307849759,-500.0,0.00032876,6]
[327676732,1716307849769,-1095.12,0.00032876,6]
[327676733,1716307849779,-500.0,0.00032876,6]
[327676734,1716307849790,-2612.88,0.00032876,6]
[327676735,1716307849800,-893.66,0.00032876,6]
[327676736,1716307849809,-500.0,0.00032876,6]
[327676737,1716307849819,-3131.44,0.00032876,6]
[327676738,1716307849830,-855.16,0.00032876,6]
[327676739,1716307849840,-500.0,0.00032876,6]
[327676740,1716307849850,-500.0,0.00032876,2]
[327676741,1716307849860,-2084.5,0.00032876,6]
[327676742,1716307849871,-23280.0,0.00032876,6]
[327676743,1716307849881,-3368.37,0.00032876,6]
[327676744,1716307849892,-825.23,0.00032876,6]
[327676745,1716307849902,-1995.25,0.00032876,6]
[327676746,1716307849912,-500.0,0.00032876,6]
[327676747,1716307849922,-721.71,0.00032876,6]
[327676748,1716307849932,-919.14,0.00032876,6]
[327676749,1716307849942,-500.0,0.00032876,6]
[327676750,1716307849952,-261.0950077,0.00032876,6]
[327676751,1716307849963,-500.0,0.00032876,6]
[327676752,1716307849973,-500.0,0.00032876,6]
[327676753,1716307849992,-969.51,0.00032876,6]
[327676754,1716307850002,-1847.62,0.00032876,6]
[327676755,1716307850012,-500.0,0.00032876,6]
[327676756,1716307850023,-2136.15,0.00032876,6]
[327676757,1716307850034,-560.47,0.00032876,6]
[327676758,1716307850044,-1892.66,0.00032876,6]
[327676759,1716307850055,-533.81,0.00032876,6]
[327676760,1716307850065,-500.0,0.00032876,6]
[327676761,1716307850077,-671.98,0.00032876,6]
[327676762,1716307850087,-341.87,0.00032876,6]
[327676763,1716307850097,-500.0,0.00032876,6]
[327676764,1716307850107,-500.0,0.00032876,6]
[327676765,1716307850118,-500.0,0.00032876,6]
[327676766,1716307850128,-151.0,0.00032876,7]
[327676767,1716307850138,-151.0,0.00032876,7]
[327676768,1716307850148,-500.0,0.00032876,6]
[327676769,1716307850159,-500.0,0.00032876,6]
[327676770,1716307850169,-500.0,0.00032876,6]
[327676771,1716307850179,-5203.42,0.00032876,6]
[327676772,1716307850189,-19083.67,0.00032876,6]
[327676773,1716307850200,-500.0,0.00032876,6]
[327676774,1716307850209,-500.0,0.00032876,6]
[327676775,1716307850219,-500.0,0.00032876,6]
[327676776,1716307850231,-611.06,0.00032876,6]
[327676777,1716307850241,-1347.73,0.00032876,6]
[327676778,1716307850251,-500.0,0.00032876,6]
[327676779,1716307850260,-734.85,0.00032876,6]
[327676780,1716307850271,-500.0,0.00032876,6]
[327676781,1716307850281,-1505.45,0.00032876,6]
[327676782,1716307850291,-1081.06,0.00032876,2]
[327676783,1716307850301,-957.84,0.00032876,6]
[327676784,1716307850310,-500.0,0.00032876,6]
[327676785,1716307850321,-5249.34,0.00032876,6]
[327676786,1716307850331,-500.0,0.00032876,6]
[327676787,1716307850341,-500.0,0.00032876,6]
[327676788,1716307850352,-805.56,0.00032876,6]
[327676789,1716307850362,-151.0,0.00032876,7]
[327676790,1716307850371,-949.82,0.00032876,6]
[327676791,1716307850382,-5696.39,0.00032876,6]
[327676792,1716307850392,-2668.36,0.00032876,6]
[327676793,1716307850402,-500.0,0.00032876,6]
[327676794,1716307850411,-500.0,0.00032876,6]
[327676795,1716307850421,-3076.0,0.00032876,6]
[327676796,1716307850431,-151.0,0.00032876,7]
[327676797,1716307850441,-500.0,0.00032876,6]
[327676798,1716307850451,-500.0,0.00032876,6]
[327676799,1716307850461,-643.67,0.00032876,6]
[327676800,1716307850471,-500.0,0.00032876,6]
[327676801,1716307850483,-3556.92,0.00032876,6]
[327676802,1716307850493,-500.0,0.00032876,6]
[327676803,1716307850503,-500.0,0.00032876,6]
[327676804,1716307850512,-500.0,0.00032876,6]
[327676805,1716307850522,-500.0,0.00032876,6]
[327676806,1716307850532,-500.0,0.00032876,6]
[327676807,1716307850542,-151.0,0.00032876,7]
[327676808,1716307850552,-3229.19,0.00032876,6]
[327676809,1716307850562,-284.23133795,0.00032879,7]
[327676810,1716307850572,-523.38646871,0.00032879,7]
[327676811,1716307850582,-2900.0,0.000329,12]
[327676812,1716307850592,-150.0,0.00032902,2]
[327676813,1716307850602,-151.0,0.00032913,7]
[327676814,1716307850612,-151.0,0.00032913,7]
[327676815,1716307850622,-151.0,0.00032913,7]
[327676816,1716307850632,-151.0,0.00032913,7]
[327676817,1716307850642,-151.0,0.00032913,7]
[327676818,1716307850652,-151.0,0.00032913,7]
[327676819,1716307850662,-151.0,0.00032913,7]
[327676820,1716307850672,-151.0,0.00032913,7]
[327676821,1716307850682,-151.0,0.00032913,7]
[327676822,1716307850691,-151.0,0.00032913,7]
[327676823,1716307850702,-151.0,0.00032913,7]
[327676824,1716307850712,-151.0,0.00032913,7]
[327676825,1716307850722,-500.0,0.00033,2]
[327676826,1716307850733,-2321.0,0.00033,4]
[327676827,1716307850742,-11369.87087697,0.00033015,5]
[327676828,1716307850752,-3816.2806237,0.00033015,2]
[327676829,1716307850762,-151.0,0.00033015,7]
[327676830,1716307850772,-151.0,0.00033015,7]
[327676831,1716307850782,-151.0,0.00033015,7]
[327676832,1716307850793,-151.0,0.00033015,7]
[327676833,1716307850802,-151.0,0.00033015,7]
[327676834,1716307850812,-253.10572748,0.00033022,2]
[327676835,1716307850822,-218.15623486,0.0003305,6]
[327676836,1716307850833,-150.10571009,0.0003305,2]
[327676837,1716307850843,-151.0,0.00033092,7]
[327676838,1716307850853,-151.0,0.00033092,7]
[327676839,1716307850863,-151.0,0.00033092,7]
[327676840,1716307850873,-151.0,0.00033092,7]
[327676841,1716307850882,-151.836261,0.00033092,7]
[327676842,1716307850893,-151.0,0.00033092,7]
[327676843,1716307850903,-440.795974,0.00033092,7]
[327676844,1716307850912,-440.795974,0.00033092,7]
[327676845,1716307850922,-151.0,0.00033092,7]
[327676846,1716307850932,-151.0,0.00033092,7]
[327676847,1716307850942,-151.0,0.00033092,7]
[327676848,1716307850952,-5214.00205083,0.00033144,2]
[327676849,1716307850962,-150.0,0.00033147,2]
[327676850,1716307850971,-29378.57326942,0.0003315,21]
[327676851,1716307851599,-544.40352,0.0003315,21]
[327676852,1716307851613,-6246.50973598,0.0003315,21]
[327676853,1716307851627,-6695.37999436,0.0003315,21]
[327676854,1716307851640,-1004.31298743,0.0003315,21]
[327676855,1716307851652,-4763.46715348,0.0003315,21]
[327676856,1716307851664,-3911.89536515,0.0003315,21]
[327676857,1716307851677,-1654.61731985,0.0003315,21]
[327676858,1716307851755,-627.64440367,0.0003315,21]
[327676859,1716307851768,-34039.59738794,0.0003315,21]
[327676860,1716307851778,-7936.7767985,0.0003315,14]
[327676861,1716307851798,-696.65702926,0.0003315,14]
[327676862,1716307851810,-2008.37663156,0.0003315,14]
[327676863,1716307851821,-5272.87313822,0.0003315,14]
[327676864,1716307851831,-506.8707912,0.0003315,6]
[327676865,1716307851841,-1715.84961336,0.0003315,2]
[327676866,1716307851857,-284.15038664,0.0003315,2]
[327676867,1716307851867,-200.0,0.0003315,2]
[327676868,1716307851877,-559.92,0.0003315,6]
[327676869,1716307851887,-510.14521618,0.0003315,6]
[327676870,1716307851897,-500.0,0.0003315,6]
[327676871,1716307851906,-500.0,0.0003315,6]
[327676872,1716307851916,-43.83312162,0.0003315,6]
[327676873,1716307851928,-456.16687838,0.0003315,6]
[327676874,1716307851938,-500.0,0.0003315,6]
[327676875,1716307851948,-500.0,0.0003315,6]
[327676876,1716307851958,-500.0,0.0003315,6]
[327676877,1716307851968,-500.0,0.0003315,6]
[327676878,1716307851982,-500.0,0.0003315,6]
[327676879,1716307851993,-256.19,0.0003315,6]
[327676880,1716307852004,-500.0,0.0003315,6]
[327676881,1716307852014,-500.0,0.0003315,6]
[327676882,1716307852026,-500.0,0.0003315,6]
[327676883,1716307852036,-500.0,0.0003315,6]
[327676884,1716307852046,-500.0,0.0003315,6]
[327676885,1716307852056,-500.0,0.0003315,6]
[327676886,1716307852067,-835.19,0.0003315,6]
[327676887,1716307852077,-500.0,0.0003315,6]
[327676888,1716307852088,-500.0,0.0003315,6]
[327676889,1716307852098,-221.1770614,0.0003315,6]
[327676890,1716307852108,-500.0,0.0003315,6]
[327676891,1716307852118,-500.0,0.0003315,6]
[327676892,1716307852127,-500.0,0.0003315,6]
[327676893,1716307852136,-500.0,0.0003315,6]
[327676894,1716307852146,-500.0,0.0003315,6]
[327676895,1716307852155,-500.0,0.0003315,6]
[327676896,1716307852165,-624.22278294,0.0003315,6]
[327676897,1716307852174,-500.0,0.0003315,6]
[327676898,1716307852183,-70.88264635,0.0003315,6]
[327676899,1716307852196,-429.11735365,0.0003315,6]
[327676900,1716307852206,-500.0,0.0003315,6]
[327676901,1716307852216,-354.84098269,0.0003315,6]
[327676902,1716307852226,-500.0,0.0003315,6]
[327676903,1716307852239,-500.0,0.0003315,6]
[327676904,1716307852248,-510.15814756,0.0003315,6]
[327676905,1716307852258,-500.0,0.0003315,6]
[327676906,1716307852267,-500.0,0.0003315,6]
[327676907,1716307852277,-500.0,0.0003315,6]
[327676908,1716307852287,-500.0,0.0003315,6]
[327676909,1716307852296,-151.0,0.0003315,7]
[327676910,1716307852306,-500.0,0.0003315,6]
[327676911,1716307852316,-500.0,0.0003315,6]
[327676912,1716307852325,-500.0,0.0003315,6]
[327676913,1716307852335,-500.0,0.0003315,6]
[327676914,1716307852344,-508.13029522,0.0003315,6]
[327676915,1716307852354,-500.0,0.0003315,6]
[327676916,1716307852364,-353.58774435,0.0003315,6]
[327676917,1716307852376,-260.02225565,0.0003315,6]
[327676918,1716307852386,-545.09,0.0003315,6]
[327676919,1716307852395,-500.0,0.0003315,6]
[327676920,1716307852405,-500.0,0.0003315,6]
[327676921,1716307852414,-500.0,0.0003315,6]
[327676922,1716307852424,-500.0,0.0003315,6]
[327676923,1716307852434,-385.2641456,0.0003315,6]
[327676924,1716307852453,-114.7358544,0.0003315,6]
[327676925,1716307852462,-506.08903467,0.0003315,6]
[327676926,1716307852472,-48.0834731,0.0003315,6]
[327676927,1716307852964,-4212.02323977,0.00032833,2]
[327676928,1716307852982,-1396.16,0.00032833,2]
[327676929,1716307853046,-8054.03652327,0.00032833,2]
[327676930,1716307853055,-151.0,0.00032876,7]
[327676931,1716307853064,-500.0,0.00032876,6]
[327676932,1716307853074,-151.0,0.00033015,7]
[327676933,1716307853083,-451.9165269,0.0003315,6]
[327676934,1716307853092,-500.0,0.0003315,6]
[327676935,1716307853101,-500.0,0.0003315,6]
[327676936,1716307853110,-500.0,0.0003315,6]
[327676937,1716307853119,-500.0,0.0003315,6]
[327676938,1716307853128,-500.0,0.0003315,6]
[327676939,1716307853138,-500.0,0.0003315,6]
[327676940,1716307853147,-500.0,0.0003315,6]
[327676941,1716307853156,-500.0,0.0003315,6]
[327676942,1716307853165,-906.6,0.0003315,6]
[327676943,1716307853174,-629.34072166,0.0003315,6]
[327676944,1716307853184,-500.0,0.0003315,6]
[327676945,1716307853193,-500.0,0.0003315,6]
[327676946,1716307853202,-500.0,0.0003315,6]
[327676947,1716307853211,-500.0,0.0003315,6]
[327676948,1716307853223,-500.0,0.0003315,6]
[327676949,1716307853234,-500.0,0.0003315,6]
[327676950,1716307853243,-500.0,0.0003315,6]
[327676951,1716307853252,-500.0,0.0003315,6]
[327676952,1716307853261,-500.0,0.0003315,6]
[327676953,1716307853270,-151.0,0.0003315,7]
[327676954,1716307853279,-500.0,0.0003315,6]
[327676955,1716307853288,-218.65625,0.0003315,7]
[327676956,1716307853298,-500.0,0.0003315,6]
[327676957,1716307853307,-500.0,0.0003315,6]
[327676958,1716307853316,-500.0,0.0003315,6]
[327676959,1716307853325,-500.0,0.0003315,6]
[327676960,1716307853334,-500.0,0.0003315,6]
[327676961,1716307853344,-500.0,0.0003315,6]
[327676962,1716307853353,-500.0,0.0003315,6]
[327676963,1716307853363,-500.0,0.0003315,6]
[327676964,1716307853372,-500.0,0.0003315,6]
[327676965,1716307853381,-424.85542295,0.0003315,6]
[327676966,1716307853391,-500.0,0.0003315,6]
[327676967,1716307853400,-500.0,0.0003315,6]
[327676968,1716307853410,-500.0,0.0003315,6]
[327676969,1716307853419,-183.98880739,0.0003315,6]
[327676970,1716307853428,-500.0,0.0003315,6]
[327676971,1716307853438,-558.69,0.0003315,6]
[327676972,1716307853447,-1317.9,0.0003315,6]
[327676973,1716307853520,-500.0,0.0003315,6]
[327676974,1716307853529,-500.0,0.0003315,6]
[327676975,1716307853539,-500.0,0.0003315,6]
[327676976,1716307853548,-711.25,0.0003315,6]
[327676977,1716307853557,-500.0,0.0003315,6]
[327676978,1716307853567,-500.0,0.0003315,6]
[327676979,1716307853576,-1101.06,0.0003315,6]
[327676980,1716307853585,-562.73434556,0.0003315,6]
[327676981,1716307853594,-500.0,0.0003315,6]
[327676982,1716307853604,-500.0,0.0003315,6]
[327676983,1716307853613,-500.0,0.0003315,6]
[327676984,1716307853623,-1215.56,0.0003315,6]
[327676985,1716307853632,-497.27680919,0.0003315,6]
[327676986,1716307853641,-2188.82,0.0003315,6]
[327676987,1716307853650,-500.0,0.0003315,6]
[327676988,1716307853660,-500.0,0.0003315,6]
[327676989,1716307853669,-500.0,0.0003315,6]
[327676990,1716307853678,-200.0,0.0003315,2]
[327676991,1716307853688,-543.27,0.0003315,6]
[327676992,1716307853697,-656.39,0.0003315,6]
[327676993,1716307853706,-555.86,0.0003315,6]
[327676994,1716307853716,-500.0,0.0003315,6]
[327676995,1716307853725,-500.0,0.0003315,6]
[327676996,1716307853737,-500.0,0.0003315,6]
[327676997,1716307853746,-500.0,0.0003315,6]
[327676998,1716307853755,-500.0,0.0003315,6]
[327676999,1716307853764,-507.51,0.0003315,6]
[327677000,1716307853773,-796.93,0.0003315,6]
[327677001,1716307853782,-500.0,0.0003315,6]
[327677002,1716307853792,-500.0,0.0003315,6]
[327677003,1716307853802,-500.0,0.0003315,6]
[327677004,1716307853811,-748.16,0.0003315,6]
[327677005,1716307853820,-295.97834139,0.0003315,6]
[327677006,1716307853829,-504.28,0.0003315,6]
[327677007,1716307853838,-548.63,0.0003315,6]
[327677008,1716307853847,-2124.6,0.0003315,6]
[327677009,1716307853856,-836.2,0.0003315,6]
[327677010,1716307853866,-500.0,0.0003315,6]
[327677011,1716307853877,-500.0,0.0003315,6]
[327677012,1716307853886,-500.0,0.0003315,6]
[327677013,1716307853896,-678.33,0.0003315,6]
[327677014,1716307853905,-500.0,0.0003315,6]
[327677015,1716307853914,-550.07,0.0003315,6]
[327677016,1716307853924,-500.0,0.0003315,6]
[327677017,1716307853934,-500.0,0.0003315,6]
[327677018,1716307853943,-500.0,0.0003315,6]
[327677019,1716307853953,-500.0,0.0003315,6]
[327677020,1716307853963,-500.0,0.0003315,6]
[327677021,1716307853971,-500.0,0.0003315,6]
[327677022,1716307853983,-500.0,0.0003315,6]
[327677023,1716307853992,-500.0,0.0003315,6]
[327677024,1716307854005,-953.54,0.0003315,6]
[327677025,1716307854014,-500.0,0.0003315,6]
[327677026,1716307854024,-1017.69,0.0003315,6]
[327677027,1716307854034,-500.0,0.0003315,6]
[327677028,1716307854044,-500.0,0.0003315,6]
[327677029,1716307854054,-500.0,0.0003315,6]
[327677030,1716307854063,-8308.09614506,0.0003315,2]
[327677031,1716307854074,-500.0,0.0003315,6]
[327677032,1716307854083,-500.0,0.0003315,6]
[327677033,1716307854094,-500.0,0.0003315,6]
[327677034,1716307854103,-1061.9,0.0003315,6]
[327677035,1716307854112,-666.57,0.0003315,6]
[327677036,1716307854122,-541.10198372,0.0003315,6]
[327677037,1716307854132,-548.46,0.0003315,6]
[327677038,1716307854142,-794.43,0.0003315,6]
[327677039,1716307854151,-151.0,0.0003315,7]
[327677040,1716307854160,-483.52640705,0.0003315,6]
[327677041,1716307854171,-500.0,0.0003315,6]
[327677042,1716307854180,-500.0,0.0003315,6]
[327677043,1716307854190,-745.04,0.0003315,6]
[327677044,1716307854199,-500.0,0.0003315,6]
[327677045,1716307854209,-500.0,0.0003315,6]
[327677046,1716307854218,-666.75,0.0003315,6]
[327677047,1716307854227,-503.62,0.0003315,6]
[327677048,1716307854238,-500.0,0.0003315,6]
[327677049,1716307854247,-500.0,0.0003315,6]
[327677050,1716307854256,-631.02,0.0003315,6]
[327677051,1716307854265,-671.14,0.0003315,6]
[327677052,1716307854274,-500.0,0.0003315,6]
[327677053,1716307854283,-151.0,0.0003315,7]
[327677054,1716307854292,-151.0,0.0003315,7]
[327677055,1716307854301,-500.0,0.0003315,6]
[327677056,1716307854310,-747.42,0.0003315,6]
[327677057,1716307854319,-520.76,0.0003315,6]
[327677058,1716307854329,-613.25,0.0003315,6]
[327677059,1716307854338,-500.0,0.0003315,6]
[327677060,1716307854348,-500.0,0.0003315,6]
[327677061,1716307854357,-542.86,0.0003315,6]
[327677062,1716307854366,-151.0,0.0003315,7]
[327677063,1716307854375,-500.0,0.0003315,6]
[327677064,1716307854384,-578.01,0.0003315,6]
[327677065,1716307854394,-500.0,0.0003315,6]
[327677066,1716307854403,-500.0,0.0003315,6]
[327677067,1716307854412,-500.0,0.0003315,6]
[327677068,1716307854421,-610.34,0.0003315,6]
[327677069,1716307854430,-295.03010171,0.0003315,6]
[327677070,1716307854449,-204.96989829,0.0003315,6]
[327677071,1716307854459,-128.7132248,0.0003315,6]
[327677072,1716307854470,-442.5367752,0.0003315,6]
[327677073,1716307854479,-228.425688,0.0003315,7]
[327677074,1716307854490,-58.9699818,0.0003315,6]
[327677075,1716307854501,-441.0300182,0.0003315,6]
[327677076,1716307854510,-500.0,0.0003315,6]
[327677077,1716307854519,-500.0,0.0003315,6]
[327677078,1716307854528,-500.0,0.0003315,6]
[327677079,1716307854537,-664.07,0.0003315,6]
[327677080,1716307854547,-500.0,0.0003315,6]
[327677081,1716307854555,-500.0,0.0003315,6]
[327677082,1716307854565,-577.71,0.0003315,6]
[327677083,1716307854574,-516.45,0.0003315,6]
[327677084,1716307854583,-500.0,0.0003315,6]
[327677085,1716307854592,-678.23,0.0003315,6]
[327677086,1716307854601,-500.0,0.0003315,6]
[327677087,1716307854611,-150.0,0.0003315,6]
[327677088,1716307854620,-557.5099818,0.0003315,6]
[327677089,1716307854636,-134.8700182,0.0003315,6]
[327677090,1716307854645,-500.0,0.0003315,6]
[327677091,1716307854654,-667.47,0.0003315,6]
[327677092,1716307854664,-1045.63,0.0003315,6]
[327677093,1716307854673,-500.0,0.0003315,6]
[327677094,1716307854682,-770.23,0.0003315,6]
[327677095,1716307854691,-500.0,0.0003315,6]
[327677096,1716307854701,-500.0,0.0003315,6]
[327677097,1716307854710,-500.0,0.0003315,6]
[327677098,1716307854719,-728.8,0.0003315,6]
[327677099,1716307854729,-500.0,0.0003315,6]
[327677100,1716307854740,-500.0,0.0003315,6]
[327677101,1716307854749,-656.17,0.0003315,6]
[327677102,1716307854758,-500.0,0.0003315,6]
[327677103,1716307854768,-500.0,0.0003315,6]
[327677104,1716307854777,-565.52359064,0.0003315,6]
[327677105,1716307854786,-500.0,0.0003315,6]
[327677106,1716307854796,-714.88,0.0003315,6]
[327677107,1716307854805,-1529.98,0.0003315,6]
[327677108,1716307854815,-500.0,0.0003315,6]
[327677109,1716307854824,-500.0,0.0003315,6]
[327677110,1716307854834,-984.82,0.0003315,6]
[327677111,1716307854843,-1075.91,0.0003315,6]
[327677112,1716307854852,-500.0,0.0003315,6]
[327677113,1716307854861,-500.0,0.0003315,6]
[327677114,1716307854871,-151.0,0.0003315,7]
[327677115,1716307854881,-500.0,0.0003315,6]
[327677116,1716307854891,-151.0,0.0003315,7]
[327677117,1716307854901,-500.0,0.0003315,6]
[327677118,1716307854910,-610.2,0.0003315,6]
[327677119,1716307854919,-500.0,0.0003315,6]
[327677120,1716307854928,-500.0,0.0003315,6]
[327677121,1716307854938,-500.0,0.0003315,6]
[327677122,1716307854947,-500.0,0.0003315,6]
[327677123,1716307854957,-500.0,0.0003315,6]
[327677124,1716307854967,-500.0,0.0003315,6]
[327677125,1716307854976,-1119.43,0.0003315,6]
[327677126,1716307854990,-762.37,0.0003315,6]
[327677127,1716307855001,-500.0,0.0003315,6]
[327677128,1716307855009,-500.0,0.0003315,6]
[327677129,1716307855019,-500.0,0.0003315,6]
[327677130,1716307855031,-500.0,0.0003315,6]
[327677131,1716307855041,-500.0,0.0003315,6]
[327677132,1716307855052,-1792.44,0.0003315,6]
[327677133,1716307855063,-500.0,0.0003315,6]
[327677134,1716307855072,-500.0,0.0003315,6]
[327677135,1716307855082,-500.0,0.0003315,6]
[327677136,1716307855091,-932.82,0.0003315,6]
[327677137,1716307855100,-301.77445157,0.0003315,6]
[327677138,1716307855110,-500.0,0.0003315,6]
[327677139,1716307855119,-500.0,0.0003315,6]
[327677140,1716307855129,-647.82,0.0003315,6]
[327677141,1716307855138,-500.0,0.0003315,6]
[327677142,1716307855147,-1190.96,0.0003315,6]
[327677143,1716307855156,-500.0,0.0003315,6]
[327677144,1716307855165,-688.19,0.0003315,6]
[327677145,1716307855175,-500.0,0.0003315,6]
[327677146,1716307855184,-524.96547269,0.0003315,6]
[327677147,1716307855194,-694.43,0.0003315,6]
[327677148,1716307855203,-500.0,0.0003315,6]
[327677149,1716307855212,-387.91288443,0.0003315,6]
[327677150,1716307855221,-500.0,0.0003315,6]
[327677151,1716307855230,-1976.78,0.0003315,6]
[327677152,1716307855241,-500.0,0.0003315,6]
[327677153,1716307855251,-500.0,0.0003315,6]
[327677154,1716307855259,-531.08,0.0003315,6]
[327677155,1716307855268,-825.16,0.0003315,6]
[327677156,1716307855278,-633.61,0.0003315,6]
[327677157,1716307855287,-500.0,0.0003315,6]
[327677158,1716307855297,-151.0,0.0003315,7]
[327677159,1716307855307,-549.74,0.0003315,6]
[327677160,1716307855316,-151.0,0.0003315,7]
[327677161,1716307855326,-500.0,0.0003315,6]
[327677162,1716307855335,-500.0,0.0003315,6]
[327677163,1716307855345,-500.0,0.0003315,6]
[327677164,1716307855354,-24523.03358244,0.0003315,2]
[327677165,1716307855369,-1654.000128,0.0003315,2]
[327677166,1716307855386,-151.0,0.00032876,7]
[327677167,1716307855395,-140930.36263273,0.0003315,2]
[327677168,1716307855406,-455.968116,0.0003315,2]
[327677169,1716307855417,-256.84557539,0.0003315,2]
[327677170,1716307873434,7093.04899826,0.00017259,2]
[327677171,1716307873456,466.4506,0.00017259,2]
[327677172,1716307991485,-2595.7338,0.00017259,2]
[327677173,1716308061581,178.2,0.00013973,2]
[327677174,1716308339682,-2000.0,0.00031905,120]
[327677175,1716308339852,-1000.0,0.0003352,30]
[327677176,1716308339875,-1000.0,0.00033575,30]
[327677177,1716308339898,-1000.0,0.00033606,30]
[327677178,1716308339979,-150.0,0.00034171,120]
[327677179,1716308340003,-150.0,0.00034238,120]
[327677180,1716308340119,-150.0,0.00035176,120]
[327677181,1716308340216,-150.0,0.00036398,120]
[327677182,1716308340295,-900.0,0.00037,38]
[327677183,1716308340338,-150.0,0.00037287,120]
[327677184,1716308340380,-150.0,0.00037797,120]
[327677185,1716308340421,-21096.33497689,0.00038,30]
[327677186,1716308340445,-1800.0,0.00038,39]
[327677187,1716308340471,-503.54,0.00038027,30]
[327677188,1716308340510,-150.0,0.00038167,120]
[327677189,1716308340568,-457.68277799,0.000389,30]
[327677190,1716308340592,-887.32863311,0.000389,30]
[327677191,1716308340630,-1000.0,0.00038904,120]
[327677192,1716308340652,-1000.0,0.00039,120]
[327677193,1716308340679,-1800.0,0.00039,40]
[327677194,1716308340722,-448.40098458,0.0004,100]
[327677195,1716308340746,-216.87962615,0.0004,120]
[327677196,1716308340768,-240.41851159,0.0004,30]
[327677197,1716308340791,-349.73763421,0.0004,30]
[327677198,1716308340817,-973.56604362,0.0004,120]
[327677199,1716308340839,-290.00544424,0.0004,30]
[327677200,1716308340861,-1367.80752646,0.0004,120]
[327677201,1716308340884,-290.36654313,0.0004,30]
[327677202,1716308340908,-1000.0,0.0004,120]
[327677203,1716308340932,-1800.0,0.0004,41]
[327677204,1716308340959,-1631.62,0.0004,120]
[327677205,1716308340984,-500.0,0.0004,120]
[327677206,1716308341007,-392.45989945,0.0004001,30]
[327677207,1716308341031,-150.0,0.000404,30]
[327677208,1716308341052,-1761.70217501,0.0004048,60]
[327677209,1716308341076,-150.0,0.000409,30]
[327677210,1716308341099,-615.29450386,0.00041,120]
[327677211,1716308341123,-181.91305482,0.00041,30]